bitfinex-derivatives/quotes_SOLF0:USTF0_20260215
["timestamp","ask_amount","ask_price","bid_price","bid_amount"]
[1771189129276,6.97643723,85.838,85.806,14.17369928]
[1771189129482,3.80094472,85.84,85.806,14.17369928]
[1771189129683,6.99112382,85.839,85.806,14.17369928]
[1771189129882,6.99112382,85.838,85.806,14.17369928]
[1771189130083,3.80094472,85.84,85.806,14.17369928]
[1771189130284,6.99112382,85.839,85.806,14.17369928]
[1771189130482,6.99112382,85.838,85.806,14.17369928]
[1771189130684,3.80094472,85.84,85.806,14.17369928]
[1771189130884,6.9915765,85.839,85.806,14.17369928]
[1771189131181,6.9915765,85.838,85.806,14.17369928]
[1771189131385,6.9915765,85.837,85.806,14.17369928]
[1771189131581,3.80094472,85.84,85.806,14.17369928]
[1771189131883,6.99211107,85.839,85.807,3.67819928]
[1771189132084,6.99211107,85.838,85.807,3.67819928]
[1771189132288,6.99211107,85.837,85.807,3.67819928]
[1771189132480,3.80094472,85.84,85.807,3.67819928]
[1771189132787,6.99273687,85.839,85.807,3.67819928]
[1771189133086,6.99273687,85.838,85.807,3.67819928]
[1771189133379,6.99273687,85.837,85.807,3.67819928]
[1771189133687,3.80094472,85.84,85.807,3.67819928]
[1771189133884,6.99346487,85.839,85.807,3.67819928]
[1771189134185,6.99346487,85.838,85.807,3.67819928]
[1771189134385,6.99346487,85.837,85.807,3.67819928]
[1771189134585,6.99346487,85.836,85.807,3.67819928]
[1771189134785,3.80094472,85.84,85.807,3.67819928]
[1771189134980,6.99531484,85.839,85.807,3.67819928]
[1771189135182,6.99531484,85.838,85.807,3.67819928]
[1771189135382,6.99531484,85.837,85.807,3.67819928]
[1771189135582,3.80094472,85.84,85.807,3.67819928]
[1771189135583,6.99531484,85.836,85.807,3.67819928]
[1771189135783,6.99531484,85.835,85.807,3.67819928]
[1771189136086,3.80094472,85.84,85.807,3.67819928]
[1771189136288,6.99770491,85.839,85.807,3.67819928]
[1771189136587,6.99770491,85.838,85.807,3.67819928]
[1771189136787,6.99770491,85.837,85.807,3.67819928]
[1771189136987,3.80094472,85.84,85.807,3.67819928]
[1771189136988,6.99770491,85.836,85.807,3.67819928]
[1771189137185,6.99770491,85.835,85.807,3.67819928]
[1771189137488,6.99770491,85.834,85.807,3.67819928]
[1771189137688,3.80094472,85.84,85.807,3.67819928]
[1771189137888,6.99818584,85.839,85.807,3.67819928]
[1771189138089,6.99818584,85.838,85.807,3.67819928]
[1771189138291,6.99818584,85.837,85.807,3.67819928]
[1771189138586,3.80094472,85.84,85.807,3.67819928]
[1771189138587,6.99818584,85.836,85.807,3.67819928]
[1771189138787,6.99818584,85.835,85.807,3.67819928]
[1771189138988,6.99818584,85.834,85.807,3.67819928]
[1771189139182,3.80094472,85.84,85.807,3.67819928]
[1771189139378,6.99848736,85.839,85.807,3.67819928]
[1771189139579,6.99848736,85.838,85.807,3.67819928]
[1771189139787,6.99848736,85.837,85.807,3.67819928]
[1771189139989,6.99848736,85.836,85.807,3.67819928]
[1771189140186,6.99848736,85.835,85.807,3.67819928]
[1771189140389,6.99848736,85.834,85.807,3.67819928]
[1771189140597,6.58294372,85.84,85.778,3.67819928]
[1771189140890,3.80094472,85.838,85.781,3.67819928]
[1771189141087,3.80094472,85.836,85.781,3.67819928]
[1771189141389,3.80094472,85.834,85.781,3.67819928]
[1771189141585,3.80094472,85.832,85.781,3.67819928]
[1771189141792,3.80094472,85.83,85.79,10.4975]
[1771189141989,3.80094472,85.828,85.771,3.67819928]
[1771189142193,3.80094472,85.826,85.771,3.67819928]
[1771189142392,3.80094472,85.819,85.771,3.67819928]
[1771189142587,3.80094472,85.817,85.771,3.67819928]
[1771189142782,3.80094472,85.809,85.768,10.5001]
[1771189143093,3.80094472,85.809,85.762,3.67819928]
[1771189143786,3.80094472,85.808,85.762,3.67819928]
[1771189144293,3.80094472,85.799,85.751,3.67819928]
[1771189144490,3.80094472,85.797,85.751,3.67819928]
[1771189144800,3.80094472,85.795,85.751,3.67819928]
[1771189144991,3.80094472,85.793,85.751,3.67819928]
[1771189145389,3.80094472,85.789,85.741,3.67819928]
[1771189145693,3.80094472,85.779,85.731,3.67819928]
[1771189145894,3.80094472,85.777,85.731,3.67819928]
[1771189146793,3.80094472,85.777,85.733,3.67819928]
[1771189147585,3.80094472,85.8,85.761,3.67819928]
[1771189147789,2.78545428,85.84,85.791,3.67819928]
[1771189148795,2.78545428,85.83,85.791,3.67819928]
[1771189149888,3.80094472,85.829,85.78,2.78545428]
[1771189150697,3.80094472,85.819,85.779,3.67819928]
[1771189151195,3.80094472,85.843,85.801,3.67819928]
[1771189151391,3.80094472,85.843,85.735,184.4081]
[1771189151392,3.80094472,85.869,85.82,2.78545428]
[1771189151698,3.80094472,85.859,85.811,3.67819928]
[1771189151997,3.80094472,85.857,85.811,3.67819928]
[1771189152399,3.80094472,85.849,85.8,2.78545428]
[1771189153094,3.80094472,85.849,85.8,6.46365356]
[1771189155987,3.80094472,85.849,85.801,3.821268]
[1771189161702,3.94302023,85.847,85.801,3.821268]
[1771189162002,3.94302023,85.839,85.791,3.821268]
[1771189162201,3.94302023,85.839,85.801,3.821268]
[1771189162403,3.94302023,85.858,85.801,3.821268]
[1771189162704,3.94302023,85.856,85.801,3.821268]
[1771189162904,3.94302023,85.855,85.801,3.821268]
[1771189163705,14.43322023,85.85,85.801,3.821268]
[1771189164004,3.94302023,85.849,85.801,3.821268]
[1771189166108,3.94302023,85.849,85.81,2.78545428]
[1771189167209,3.94302023,85.849,85.81,6.60672228]
[1771189167408,3.94302023,85.849,85.811,3.821268]
[1771189172516,3.94302023,85.848,85.801,3.821268]
[1771189173315,3.94302023,85.848,85.802,10.4959]
[1771189175112,3.94302023,85.848,85.802,14.317168]
[1771189176616,3.94302023,85.848,85.803,3.821268]
[1771189176920,3.94302023,85.848,85.807,3.821268]
[1771189177922,3.94302023,85.846,85.807,3.821268]
[1771189179322,3.94302023,85.846,85.811,3.821268]
[1771189181722,3.94302023,85.846,85.812,14.316068]
[1771189182029,3.94302023,85.846,85.813,3.821268]
[1771189182630,3.94302023,85.859,85.815,3.821268]
[1771189182927,3.94302023,85.859,85.821,3.821268]
[1771189183829,3.94302023,85.859,85.822,3.82681389]
[1771189185930,6.96181495,85.879,85.831,3.85426482]
[1771189186126,3.74818912,85.877,85.831,3.85426482]
[1771189186723,3.74818912,85.859,85.82,3.85426482]
[1771189188131,3.74818912,85.859,85.801,3.85426482]
[1771189189831,3.74818912,85.856,85.804,3.85426482]
[1771189190233,3.74818912,85.856,85.811,3.85426482]
[1771189191834,3.74818912,85.856,85.813,10.4946]
[1771189192227,3.74818912,85.854,85.813,10.4946]
[1771189193638,3.74818912,85.852,85.813,10.4946]
[1771189193826,3.74818912,85.85,85.813,10.4946]
[1771189194030,3.74818912,85.848,85.813,10.4946]
[1771189196238,3.74818912,85.846,85.813,10.4946]
[1771189197538,3.74818912,85.846,85.823,10.4934]
[1771189197734,3.74818912,85.846,85.811,3.85426482]
[1771189197942,3.74818912,85.869,85.811,3.85426482]
[1771189198143,3.74818912,85.869,85.778,20.9978]
[1771189198144,3.74818912,85.867,85.82,6.6397191]
[1771189198441,3.74818912,85.865,85.831,3.85426482]
[1771189198642,7.00773625,85.864,85.831,3.85426482]
[1771189198839,7.00773625,85.863,85.831,3.85426482]
[1771189199142,7.00773625,85.862,85.831,3.85426482]
[1771189199341,7.00773625,85.861,85.831,3.85426482]
[1771189199540,7.00773625,85.86,85.831,3.85426482]
[1771189199743,7.00773625,85.859,85.831,3.85426482]
[1771189200044,7.00773625,85.858,85.831,3.85426482]
[1771189200238,3.74818912,85.865,85.831,3.85426482]
[1771189200537,7.00684611,85.864,85.834,3.85426482]
[1771189200737,3.74818912,85.876,85.841,3.85426482]
[1771189200942,7.00689646,85.875,85.841,3.85426482]
[1771189201142,7.00689646,85.874,85.841,3.85426482]
[1771189201342,3.74818912,85.887,85.841,3.85426482]
[1771189201541,3.74818912,85.885,85.841,3.85426482]
[1771189201742,3.74818912,85.883,85.841,3.85426482]
[1771189201935,3.74818912,85.881,85.841,3.85426482]
[1771189202139,7.00461813,85.88,85.841,3.85426482]
[1771189202339,7.00461813,85.879,85.841,3.85426482]
[1771189202638,3.74818912,85.877,85.841,3.85426482]
[1771189202834,3.74818912,85.875,85.841,3.85426482]
[1771189205135,3.74818912,85.886,85.842,3.85426482]
[1771189205350,10.74670934,85.885,85.85,2.78545428]
[1771189205542,6.99852022,85.884,85.842,3.85426482]
[1771189205845,3.74818912,85.885,85.842,3.85426482]
[1771189206045,6.99691414,85.884,85.842,3.85426482]
[1771189206247,3.74818912,85.885,85.842,3.85426482]
[1771189206449,10.4845,85.897,85.842,3.85426482]
[1771189206450,3.74818912,85.883,85.842,3.85426482]
[1771189206648,10.4855,85.889,85.842,3.85426482]
[1771189206649,10.74316584,85.882,85.842,3.85426482]
[1771189206946,3.74818912,85.878,85.83,6.63267264]
[1771189207143,3.74818912,85.878,85.831,3.85426482]
[1771189209440,3.74818912,85.875,85.825,10.4932]
[1771189209639,3.74818912,85.873,85.82,2.77840782]
[1771189209842,3.74818912,85.871,85.82,2.77840782]
[1771189210946,3.74818912,85.868,85.821,3.85426482]
[1771189214448,10.4879,85.869,85.821,3.85426482]
[1771189214653,10.4879,85.869,85.831,3.6066669]
[1771189218159,10.4881,85.867,85.831,3.6066669]
[1771189218353,3.82504144,85.866,85.831,3.6066669]
[1771189218955,3.82504144,85.866,85.82,6.38507472]
[1771189219554,3.82504144,85.864,85.82,6.38507472]
[1771189219745,3.82504144,85.862,85.82,6.38507472]
[1771189219947,3.82504144,85.862,85.82,3.6066669]
[1771189220969,10.90711046,85.899,85.786,92.96]
[1771189220970,3.82504144,85.875,85.84,2.77840782]
[1771189221166,3.82504144,85.898,85.841,3.6066669]
[1771189221465,3.82504144,85.896,85.841,3.6066669]
[1771189221661,3.82504144,85.894,85.841,3.6066669]
[1771189221862,3.82504144,85.886,85.841,3.6066669]
[1771189222063,3.82504144,85.884,85.841,3.6066669]
[1771189222262,10.83081884,85.883,85.841,3.6066669]
[1771189222463,7.0057774,85.882,85.841,3.6066669]
[1771189222658,7.0057774,85.882,85.803,92.96]
[1771189222659,7.0057774,85.881,85.85,2.77840782]
[1771189222858,7.0057774,85.881,85.803,92.96]
[1771189222859,8.57710278,85.914,85.871,3.6066669]
[1771189223058,7.00633492,85.913,85.88,2.77840782]
[1771189223261,7.0022446,85.912,85.871,3.6066669]
[1771189223560,7.0022446,85.911,85.871,3.6066669]
[1771189223761,7.0022446,85.91,85.88,2.77840782]
[1771189223962,3.82504144,85.935,85.89,2.77840782]
[1771189224160,3.82504144,85.933,85.89,2.77840782]
[1771189224366,3.82504144,85.931,85.89,2.77840782]
[1771189224665,3.82504144,85.929,85.89,2.77840782]
[1771189224865,3.82504144,85.94,85.91,2.77840782]
[1771189225065,6.99846791,85.939,85.91,2.77840782]
[1771189225263,3.82504144,85.94,85.91,2.77840782]
[1771189225767,8.50417621,85.966,85.91,2.77840782]
[1771189225768,3.82504144,85.956,85.91,2.77840782]
[1771189225966,3.82504144,85.954,85.91,2.77840782]
[1771189226160,3.82504144,85.952,85.91,2.77840782]
[1771189226659,3.82504144,85.952,85.911,3.6066669]
[1771189226866,3.82504144,85.952,85.92,2.77840782]
[1771189227762,3.82504144,85.964,85.93,2.77840782]
[1771189228160,3.82504144,85.979,85.94,2.77840782]
[1771189228367,3.82504144,85.998,85.95,2.77840782]
[1771189228864,3.82504144,85.998,85.941,3.6066669]
[1771189229265,2.77840782,86.0,85.95,2.77840782]
[1771189229266,3.82504144,85.995,85.95,2.77840782]
[1771189229767,3.82504144,85.979,85.93,2.77840782]
[1771189229968,3.82504144,85.979,85.931,3.6066669]
[1771189230172,3.82504144,85.979,85.94,2.77840782]
[1771189230463,10.4732,85.99,85.941,3.6066669]
[1771189230969,3.82504144,85.989,85.941,3.6066669]
[1771189231760,3.82504144,85.959,85.91,2.77840782]
[1771189231962,3.82504144,85.959,85.908,3.6066669]
[1771189233264,2.77840782,85.95,85.908,3.6066669]
[1771189236270,3.82504144,85.958,85.908,3.6066669]
[1771189237474,2.77840782,85.97,85.921,3.6066669]
[1771189237973,3.82504144,85.959,85.91,2.77840782]
[1771189238665,3.82504144,85.949,85.907,3.6066669]
[1771189241765,92.9,85.977,85.921,3.6066669]
[1771189241766,3.82504144,85.977,85.921,3.6066669]
[1771189241963,3.82504144,85.977,85.94,2.77840782]
[1771189242266,3.82504144,85.999,85.94,6.38507472]
[1771189242871,3.82504144,85.992,85.941,3.6066669]
[1771189243473,14.36217688,85.99,85.941,3.6066669]
[1771189244066,3.88897688,85.949,85.888,3.77365284]
[1771189244270,2.77840782,85.94,85.891,3.77365284]
[1771189244569,3.88897688,85.947,85.891,3.77365284]
[1771189244770,10.4794,85.939,85.891,3.77365284]
[1771189245167,2.77840782,85.93,85.891,3.77365284]
[1771189245475,10.4808,85.927,85.88,2.77840782]
[1771189245676,2.77840782,85.9,85.85,2.77840782]
[1771189245880,2.77840782,85.9,85.841,3.63990274]
[1771189246072,3.77470562,85.899,85.843,3.63990274]
[1771189246375,15.36471385,85.95,85.83,2.77840782]
[1771189246376,3.77470562,85.889,85.83,2.77840782]
[1771189246777,2.77840782,85.88,85.831,3.63990274]
[1771189246971,3.77470562,85.889,85.831,3.63990274]
[1771189247677,2.77840782,85.88,85.831,3.63990274]
[1771189247877,3.77470562,85.903,85.841,3.63990274]
[1771189248171,3.77470562,85.891,85.826,3.63990274]
[1771189248775,10.4854,85.89,85.831,3.63990274]
[1771189248977,14.26010562,85.89,85.831,3.63990274]
[1771189250886,6.93104401,85.917,85.831,3.63990274]
[1771189250887,3.77470562,85.887,85.831,3.63990274]
[1771189251888,10.4867,85.879,85.831,3.63990274]
[1771189253290,10.4867,85.879,85.8,7.441626]
[1771189253291,3.77470562,85.91,85.841,3.63990274]
[1771189254883,10.4834,85.906,85.841,3.63990274]
[1771189255283,10.4834,85.906,85.843,3.63990274]
[1771189257291,10.4834,85.906,85.845,3.63990274]
[1771189258092,7.441626,85.93,85.84,7.441626]
[1771189258093,10.4821,85.917,85.851,3.63990274]
[1771189258589,10.4821,85.917,85.863,3.63990274]
[1771189259782,3.77470562,85.924,85.865,3.63990274]
[1771189260890,3.77470562,85.938,85.865,3.63990274]
[1771189261491,14.25430562,85.937,85.877,3.63990274]
[1771189262895,10.4801,85.933,85.877,3.63990274]
[1771189263994,3.77470562,85.93,85.877,3.63990274]
[1771189264293,3.77470562,85.976,85.901,3.63990274]
[1771189264797,3.77470562,85.969,85.887,3.63990274]
[1771189264991,3.77470562,85.941,85.887,3.63990274]
[1771189265195,3.77470562,85.941,85.872,3.63990274]
[1771189265590,92.92,85.955,85.855,3.63990274]
[1771189265591,3.77470562,85.928,85.855,3.63990274]
[1771189266891,3.77470562,85.912,85.855,3.63990274]
[1771189267998,3.77470562,85.912,85.857,10.4893]
[1771189269498,3.77470562,85.91,85.855,3.63990274]
[1771189269998,3.77470562,85.909,85.855,3.63990274]
[1771189270298,3.77470562,85.908,85.855,3.63990274]
[1771189270499,2.77758663,85.9,85.855,3.63990274]
[1771189270891,6.55229225,85.9,85.855,3.63990274]
[1771189271096,3.77470562,85.899,85.855,3.63990274]
[1771189276409,2.77758663,85.91,85.86,2.77758663]
[1771189276608,3.96219199,85.909,85.861,3.65628915]
[1771189282410,3.96219199,85.907,85.861,3.65628915]
[1771189282911,3.96219199,85.899,85.848,3.65628915]
[1771189283807,3.96219199,85.897,85.848,3.65628915]
[1771189285515,3.96219199,85.897,85.852,3.65628915]
[1771189286116,3.96219199,85.896,85.852,3.65628915]
[1771189286918,3.96219199,85.889,85.843,10.491]
[1771189288127,3.96219199,85.889,85.844,3.65628915]
[1771189290720,10.4856,85.888,85.844,3.65628915]
[1771189293326,3.96219199,85.887,85.844,3.65628915]
[1771189296222,3.96219199,85.883,85.844,3.65628915]
[1771189299034,3.96219199,85.883,85.848,3.65628915]
[1771189299232,3.96219199,85.883,85.85,2.77758663]
[1771189299629,3.96219199,85.892,85.85,6.43387578]
[1771189299834,7.04021649,85.891,85.85,6.43387578]
[1771189300039,7.04021649,85.89,85.85,6.43387578]
[1771189300337,7.04021649,85.889,85.85,6.43387578]
[1771189300537,3.96219199,85.89,85.85,6.43387578]
[1771189300837,7.0400754,85.889,85.85,6.43387578]
[1771189301137,3.96219199,85.89,85.85,6.43387578]
[1771189301333,7.0400754,85.889,85.85,6.43387578]
[1771189301636,3.96219199,85.89,85.85,6.43387578]
[1771189301838,7.03993307,85.889,85.85,6.43387578]
[1771189302040,3.96219199,85.89,85.85,3.65628915]
[1771189302238,7.03993307,85.889,85.85,3.65628915]
[1771189302440,3.96219199,85.89,85.85,3.65628915]
[1771189302737,11.00198641,85.889,85.85,3.65628915]
[1771189302938,3.96219199,85.889,85.85,3.65628915]
[1771189306839,3.90933994,85.912,85.87,2.77758663]
[1771189307030,7.04169287,85.911,85.871,3.87947792]
[1771189307236,7.04169287,85.91,85.871,3.87947792]
[1771189307443,7.04169287,85.909,85.881,3.87947792]
[1771189307636,3.90933994,85.923,85.89,2.77758663]
[1771189307847,7.04297067,85.922,85.89,2.77758663]
[1771189308137,3.90933994,85.923,85.89,2.77758663]
[1771189308343,7.04297113,85.922,85.89,2.77758663]
[1771189308644,3.90933994,85.923,85.89,2.77758663]
[1771189308846,7.04238912,85.922,85.89,2.77758663]
[1771189309144,3.90933994,85.923,85.89,2.77758663]
[1771189309648,7.06050015,85.922,85.89,2.77758663]
[1771189309844,3.90933994,85.923,85.89,2.77758663]
[1771189310045,7.06050015,85.922,85.89,2.77758663]
[1771189310346,3.90933994,85.923,85.89,2.77758663]
[1771189312049,7.05773812,85.922,85.89,2.77758663]
[1771189312246,7.05773812,85.921,85.89,2.77758663]
[1771189312546,3.90933994,85.923,85.89,2.77758663]
[1771189315245,14.38933994,85.934,85.9,2.77758663]
[1771189315549,7.05149117,85.933,85.91,2.77758663]
[1771189315750,7.05149117,85.932,85.91,2.77758663]
[1771189315947,3.90933994,85.946,85.91,2.77758663]
[1771189316247,7.05154224,85.945,85.91,2.77758663]
[1771189316447,7.05154224,85.944,85.91,2.77758663]
[1771189316753,3.90933994,85.957,85.92,2.77758663]
[1771189317050,10.95802135,85.956,85.92,2.77758663]
[1771189317251,7.04868141,85.955,85.92,2.77758663]
[1771189317448,14.38513994,85.968,85.93,2.77758663]
[1771189317650,7.04491202,85.967,85.93,2.77758663]
[1771189317846,14.38513994,85.968,85.93,2.77758663]
[1771189317847,7.04491202,85.966,85.93,2.77758663]
[1771189318049,3.90933994,85.968,85.94,2.77758663]
[1771189318250,10.4747,85.977,85.94,2.77758663]
[1771189318745,14.38403994,85.977,85.94,2.77758663]
[1771189318946,3.90933994,85.976,85.94,2.77758663]
[1771189319340,8.48624738,86.002,85.899,92.92]
[1771189319341,3.90933994,85.997,85.951,3.87947792]
[1771189319546,3.90933994,85.995,85.94,2.77758663]
[1771189319760,3.90933994,85.989,85.93,2.77758663]
[1771189319955,3.90933994,85.979,85.925,3.87947792]
[1771189320248,3.90933994,85.977,85.931,3.87947792]
[1771189320441,14.50639407,86.037,85.899,92.92]
[1771189320442,3.90933994,85.989,85.95,2.77758663]
[1771189320642,3.90933994,85.989,85.96,2.77758663]
[1771189321254,3.90933994,86.003,85.97,2.77758663]
[1771189321555,3.90933994,86.018,85.98,2.77758663]
[1771189321747,7.04499901,86.017,85.98,2.77758663]
[1771189321948,7.04499901,86.016,85.98,2.77758663]
[1771189322148,7.04499901,86.015,85.98,2.77758663]
[1771189322348,3.90933994,86.018,85.98,2.77758663]
[1771189323352,3.90933994,86.017,85.971,3.87947792]
[1771189323553,3.90933994,86.017,85.876,34.98]
[1771189323554,3.90933994,86.017,85.961,3.87947792]
[1771189323951,3.90933994,86.017,85.97,2.77758663]
[1771189324355,3.90933994,86.017,85.971,3.87947792]
[1771189324555,3.90933994,86.017,85.98,2.77758663]
[1771189325157,3.90933994,86.017,85.98,6.65706455]
[1771189327159,3.90933994,86.039,85.99,6.65706455]
[1771189328666,3.90933994,86.039,85.943,92.86]
[1771189328667,5.505e-05,86.05,86.02,2.77758663]
[1771189328958,5.505e-05,86.05,86.03,6.65706455]
[1771189329161,2.02233283,86.093,86.04,2.77758663]
[1771189329360,2.77758663,86.09,86.031,3.87947792]
[1771189329555,92.84,86.089,86.031,3.87947792]
[1771189330063,10.4625,86.077,86.031,3.87947792]
[1771189330362,92.84,86.089,86.031,3.87947792]
[1771189330564,3.35335616,86.088,86.031,3.87947792]
[1771189330763,3.35335616,86.077,86.031,3.87947792]
[1771189331556,10.4628,86.075,86.031,3.87947792]
[1771189332361,3.35335616,86.077,86.04,2.76632481]
[1771189332756,10.4612,86.088,86.04,6.64580273]
[1771189332953,92.82,86.087,86.04,6.64580273]
[1771189333358,131.76,86.088,86.05,2.76632481]
[1771189333564,3.44618386,86.102,86.07,2.76632481]
[1771189333868,162.99180088,86.115,86.07,2.76632481]
[1771189334262,10.4582,86.113,86.07,2.76632481]
[1771189334463,3.45180088,86.115,86.07,2.76632481]
[1771189334666,3.45180088,86.115,86.08,2.76632481]
[1771189335865,159.74,86.123,86.08,2.76632481]
[1771189336070,159.74,86.123,86.067,3.96825242]
[1771189336071,3.37065082,86.119,86.07,2.76632481]
[1771189336270,3.37065082,86.119,86.067,3.96825242]
[1771189337764,3.41202702,86.114,86.067,3.96825242]
[1771189338164,3.41202702,86.114,85.988,34.98]
[1771189338165,3.41202702,86.099,86.04,2.76632481]
[1771189338470,2.76632481,86.1,86.04,2.76632481]
[1771189338471,3.41202702,86.097,86.04,2.76632481]
[1771189338874,3.41202702,86.084,86.03,2.76632481]
[1771189339168,2.76632481,86.08,86.03,2.76632481]
[1771189339364,3.41202702,86.078,86.03,2.76632481]
[1771189339570,34.98,86.121,86.05,2.76632481]
[1771189339571,92.76,86.077,86.05,2.76632481]
[1771189339872,20.9095,86.141,85.973,113.7103]
[1771189339873,3.34034976,86.119,86.06,3.96825242]
[1771189340176,3.34034976,86.119,86.062,3.96825242]
[1771189340970,3.34034976,86.119,86.065,10.4639]
[1771189341177,3.34034976,86.119,86.066,3.96825242]
[1771189341572,3.34034976,86.137,86.072,3.96825242]
[1771189341772,160.58,86.136,86.072,3.96825242]
[1771189341974,3.34034976,86.137,86.072,3.96825242]
[1771189342174,3.30054377,86.122,86.072,3.96825242]
[1771189342379,92.76,86.132,86.072,3.96825242]
[1771189342971,13.75574377,86.137,86.074,10.4628]
[1771189343172,3.30054377,86.159,86.081,3.96825242]
[1771189343374,3.30054377,86.157,86.081,3.96825242]
[1771189343982,1.00054377,86.157,86.081,3.96825242]
[1771189344579,10.4547,86.142,86.083,3.96825242]
[1771189344880,34.98,86.199,86.083,3.96825242]
[1771189345080,110.78,86.169,86.083,3.96825242]
[1771189345580,2.02067123,86.173,86.083,3.96825242]
[1771189345878,10.4534,86.152,86.094,3.96825242]
[1771189346082,1.34698641,86.151,86.094,3.96825242]
[1771189346473,1.34698641,86.135,86.026,3.96825242]
[1771189346680,1.34698641,86.133,86.051,3.96825242]
[1771189347777,11.94360279,86.127,86.072,3.96825242]
[1771189348276,1.48710279,86.127,86.072,3.96825242]
[1771189348879,1.48710279,86.127,86.077,3.96825242]
[1771189349977,1.42418413,86.12,86.062,3.96825242]
[1771189350481,10.4634,86.07,86.018,3.96825242]
[1771189352985,10.4641,86.065,86.018,3.96825242]
[1771189354784,10.4651,86.056,86.018,3.96825242]
[1771189355386,10.4651,86.056,85.999,3.96825242]
[1771189355580,1.42840585,86.065,86.001,3.96825242]
[1771189356385,1.45909115,86.056,86.001,3.96825242]
[1771189356683,1.45909115,86.056,85.97,7.40393325]
[1771189356684,1.45909115,86.056,85.971,3.96825242]
[1771189356887,1.45909115,86.049,85.971,3.96825242]
[1771189357088,10.4666,86.043,85.98,3.96825242]
[1771189357493,10.4666,86.043,85.997,3.96825242]
[1771189358086,1.43530276,86.042,85.997,3.96825242]
[1771189358281,10.469,86.024,85.981,3.96825242]
[1771189358483,1.43530276,86.023,85.951,3.96825242]
[1771189358684,1.43530276,86.009,85.951,3.96825242]
[1771189358879,1.43530276,86.007,85.951,3.96825242]
[1771189359280,1.43530276,86.005,85.951,3.96825242]
[1771189359988,1.42427958,86.004,85.951,3.96825242]
[1771189360583,7.40393325,86.03,85.951,3.96825242]
[1771189360584,1.42427958,86.039,85.951,3.96825242]
[1771189360777,1.42427958,86.037,85.951,3.96825242]
[1771189361383,10.4683,86.03,85.951,3.96825242]
[1771189361588,10.4683,86.03,85.93,7.40393325]
[1771189361589,7.40393325,86.02,85.965,3.96825242]
[1771189361778,1.42427958,86.019,85.965,3.96825242]
[1771189362891,10.4701,86.015,85.965,3.96825242]
[1771189364082,10.4701,86.015,85.884,34.98]
[1771189364083,1.41857998,86.01,85.949,3.64791404]
[1771189364386,1.41857998,86.008,85.949,3.64791404]
[1771189365888,10.4718,86.001,85.949,3.64791404]
[1771189371292,12.37884552,86.001,85.949,3.64791404]
[1771189371600,1.90704552,85.99,85.926,3.95596627]
[1771189371897,1.90704552,85.988,85.926,3.95596627]
[1771189372398,10.4755,85.971,85.926,3.95596627]
[1771189373293,1.90680662,86.01,85.931,3.95596627]
[1771189373692,7.40393325,86.02,85.931,3.95596627]
[1771189374098,1.90680662,86.024,85.931,3.95596627]
[1771189374696,10.4697,86.018,85.954,10.4774]
[1771189374901,10.4697,86.018,85.955,3.95596627]
[1771189376696,1.90680662,86.024,85.972,3.95596627]
[1771189377400,1.90680662,86.024,85.951,3.95596627]
[1771189377599,8.36050394,86.077,85.92,92.8]
[1771189377600,1.65846895,86.078,85.971,3.95596627]
[1771189377901,1.68367158,86.076,85.991,3.95596627]
[1771189378394,1.68367158,86.053,85.991,3.95596627]
[1771189378896,164.78367158,86.053,85.991,3.95596627]
[1771189379201,1.68367158,86.053,85.991,3.95596627]
[1771189379700,1.68367158,86.053,85.994,3.95596627]
[1771189380498,1.48961052,86.041,85.979,3.95596627]
[1771189381803,1.48961052,86.041,85.986,3.95596627]
[1771189383098,10.4661,86.048,85.986,3.95596627]
[1771189383297,10.4661,86.048,85.991,3.95596627]
[1771189383497,1.45250318,86.056,85.991,3.95596627]
[1771189384696,10.4657,86.051,85.991,3.95596627]
[1771189384902,1.44652809,86.05,85.991,3.95596627]
[1771189386407,1.44652809,86.05,85.993,3.95596627]
[1771189387608,1.44656571,86.048,85.996,3.95596627]
[1771189387808,1.44656571,86.048,85.971,3.95596627]
[1771189388708,10.4676,86.036,85.984,3.95596627]
[1771189389103,1.44656571,86.048,85.984,3.95596627]
[1771189389303,1.4445734,86.069,85.984,3.95596627]
[1771189389807,1.4445734,86.069,85.991,3.95596627]
[1771189390707,10.4644,86.062,86.002,3.95596627]
[1771189390904,11.91453638,86.062,86.002,3.95596627]
[1771189391106,1.45013638,86.061,86.002,3.95596627]
[1771189392705,10.4649,86.058,86.003,10.4714]
[1771189392910,10.4649,86.058,86.004,3.95596627]
[1771189395305,10.4635,86.069,86.007,3.93028892]
[1771189396707,10.4635,86.069,86.017,3.93028892]
[1771189398908,10.4635,86.069,86.019,3.93028892]
[1771189399412,1.48228267,86.075,86.019,3.93028892]
[1771189400811,1.48228267,86.075,86.029,3.93028892]
[1771189403111,7.06316282,86.094,85.99,7.41331612]
[1771189403112,1.45623194,86.069,86.016,3.93028892]
[1771189404713,10.4655,86.053,86.016,3.93028892]
[1771189407219,10.4645,86.061,86.016,3.93028892]
[1771189407822,1.7128601,86.057,86.016,3.93028892]
[1771189409117,10.4636,86.069,86.02,3.93028892]